[Event "*** Titled Tuesday Blitz"]
[Site "Chess.com"]
[Date "2020.10.27"]
[Round "9"]
[White "Guenplen"]
[Black "ENajer77"]
[Result "1/2-1/2"]
[WhiteElo "2840"]
[BlackElo "2699"]
[TimeControl "180+1"]
[EndTime "11:46:06 PDT"]
[Termination "Game drawn - insufficient material"]

1. d4 {[%clk 0:02:23.2]} 1... Nf6 {[%clk 0:02:58.4]} 2. Bf4 {[%clk 0:02:23]}
2... c5 {[%clk 0:02:57.4]} 3. d5 {[%clk 0:02:23.2]} 3... e6 {[%clk 0:02:54.9]}
4. Nc3 {[%clk 0:02:17.3]} 4... b5 {[%clk 0:02:45.9]} 5. e4 {[%clk 0:02:07.6]}
5... a6 {[%clk 0:02:11.2]} 6. dxe6 {[%clk 0:02:03.8]} 6... dxe6 {[%clk
0:02:10.5]} 7. Qxd8+ {[%clk 0:02:01.3]} 7... Kxd8 {[%clk 0:02:11.4]} 8. O-O-O+
{[%clk 0:02:01.8]} 8... Nfd7 {[%clk 0:01:55.3]} 9. a4 {[%clk 0:01:55]} 9... b4
{[%clk 0:01:54]} 10. Nb1 {[%clk 0:01:55.3]} 10... Bb7 {[%clk 0:01:53.2]} 11. Nd2
{[%clk 0:01:51.8]} 11... e5 {[%clk 0:01:32.5]} 12. Be3 {[%clk 0:01:47.2]} 12...
Nc6 {[%clk 0:01:28.7]} 13. Nc4 {[%clk 0:01:46.4]} 13... Kc7 {[%clk 0:01:23.1]}
14. Rxd7+ {[%clk 0:01:34.2]} 14... Kxd7 {[%clk 0:01:22.8]} 15. Nb6+ {[%clk
0:01:35.1]} 15... Kc7 {[%clk 0:01:22.7]} 16. Nxa8+ {[%clk 0:01:35.9]} 16... Bxa8
{[%clk 0:01:23.5]} 17. Bxa6 {[%clk 0:01:31.5]} 17... f5 {[%clk 0:01:13.3]} 18.
exf5 {[%clk 0:01:19.6]} 18... Nd4 {[%clk 0:01:06.4]} 19. Nf3 {[%clk 0:01:13.9]}
19... Nxf5 {[%clk 0:00:53.3]} 20. Rd1 {[%clk 0:01:07.9]} 20... Bd6 {[%clk
0:00:42.6]} 21. Ng5 {[%clk 0:01:04.3]} 21... Bxg2 {[%clk 0:00:24.9]} 22. Ne6+
{[%clk 0:01:01.2]} 22... Kb6 {[%clk 0:00:17.5]} 23. Nxg7 {[%clk 0:00:50.7]}
23... Kxa6 {[%clk 0:00:11.1]} 24. Nxf5 {[%clk 0:00:49.6]} 24... Bf8 {[%clk
0:00:10]} 25. Rd8 {[%clk 0:00:31.8]} 25... Rg8 {[%clk 0:00:09.8]} 26. Kd2 {[%clk
0:00:19.2]} 26... Be4 {[%clk 0:00:08.4]} 27. Nh6 {[%clk 0:00:15.8]} 27... Rh8
{[%clk 0:00:05.4]} 28. Nf7 {[%clk 0:00:16.1]} 28... Rg8 {[%clk 0:00:05.3]} 29.
Nxe5 {[%clk 0:00:13]} 29... h5 {[%clk 0:00:03.7]} 30. h4 {[%clk 0:00:09.9]}
30... Bh7 {[%clk 0:00:02.1]} 31. b3 {[%clk 0:00:03.8]} 31... Be7 {[%clk
0:00:01.9]} 32. Rd7 {[%clk 0:00:02.7]} 32... Rd8 {[%clk 0:00:01.9]} 33. Rxd8
{[%clk 0:00:03.2]} 33... Bxd8 {[%clk 0:00:02.8]} 34. Bxc5 {[%clk 0:00:03.8]}
34... Bxh4 {[%clk 0:00:02.8]} 35. Bxb4 {[%clk 0:00:04.2]} 35... Bxf2 {[%clk
0:00:02.9]} 36. Bc3 {[%clk 0:00:03.6]} 36... h4 {[%clk 0:00:02.8]} 37. Ke2
{[%clk 0:00:03.6]} 37... Bg3 {[%clk 0:00:03.1]} 38. Nf3 {[%clk 0:00:03.4]} 38...
Bxc2 {[%clk 0:00:03]} 39. b4 {[%clk 0:00:04]} 39... Bxa4 {[%clk 0:00:03.1]} 40.
Be5 {[%clk 0:00:04.3]} 40... Bb5+ {[%clk 0:00:03.1]} 41. Ke3 {[%clk 0:00:04.5]}
41... Bc6 {[%clk 0:00:03.3]} 42. Bxg3 {[%clk 0:00:04.4]} 42... hxg3 {[%clk
0:00:04.2]} 43. Ng1 {[%clk 0:00:04.8]} 43... Kb5 {[%clk 0:00:04.4]} 44. Kf4
{[%clk 0:00:05.2]} 44... g2 {[%clk 0:00:04.8]} 45. Kg3 {[%clk 0:00:05.6]} 45...
Kxb4 {[%clk 0:00:05.7]} 46. Kf2 {[%clk 0:00:06.5]} 46... Bb5 {[%clk 0:00:05.5]}
47. Kxg2 {[%clk 0:00:06.3]} 1/2-1/2

[Event "*** Titled Tuesday Blitz"]
[Site "Chess.com"]
[Date "2020.10.27"]
[Round "9"]
[White "Cocaino74"]
[Black "tylityli"]
[Result "0-1"]
[WhiteElo "2365"]
[BlackElo "2245"]
[TimeControl "180+1"]
[EndTime "11:46:09 PDT"]
[Termination "tylityli won by resignation"]

1. a4 {[%clk 0:03:00.9]} 1... d5 {[%clk 0:02:58.3]} 2. Ra3 {[%clk 0:03:01.8]}
2... Nf6 {[%clk 0:02:57.2]} 3. Rg3 {[%clk 0:03:02.3]} 3... Ne4 {[%clk
0:02:54.4]} 4. Rf3 {[%clk 0:03:01.7]} 4... Bg4 {[%clk 0:02:53.5]} 5. Rf4 {[%clk
0:03:01.9]} 5... Bh5 {[%clk 0:02:51.6]} 6. Nc3 {[%clk 0:03:01.5]} 6... Bg6
{[%clk 0:02:48.8]} 7. Nxe4 {[%clk 0:02:58.6]} 7... dxe4 {[%clk 0:02:48.7]} 8. d4
{[%clk 0:02:52.5]} 8... e6 {[%clk 0:02:42.9]} 9. e3 {[%clk 0:02:43.3]} 9... Bd6
{[%clk 0:02:41.4]} 10. Rg4 {[%clk 0:02:38.8]} 10... Bh5 {[%clk 0:02:35.6]} 11.
Bb5+ {[%clk 0:02:37.4]} 11... c6 {[%clk 0:02:34.9]} 12. Bc4 {[%clk 0:02:35.9]}
12... f5 {[%clk 0:02:22.7]} 13. h3 {[%clk 0:02:32.2]} 13... fxg4 {[%clk
0:02:22]} 14. hxg4 {[%clk 0:02:33.1]} 14... Bf7 {[%clk 0:02:21.3]} 15. Nh3
{[%clk 0:02:32.2]} 15... Nd7 {[%clk 0:02:18.7]} 16. Nf4 {[%clk 0:02:31.7]} 16...
Qe7 {[%clk 0:02:17.2]} 17. Ne2 {[%clk 0:02:28.3]} 17... Nb6 {[%clk 0:02:16.7]}
18. Bb3 {[%clk 0:02:24.3]} 18... Nd5 {[%clk 0:02:14.5]} 19. c4 {[%clk 0:02:23]}
19... Nb4 {[%clk 0:02:13.2]} 20. Kf1 {[%clk 0:02:18.9]} 20... O-O-O {[%clk
0:02:11.7]} 21. Bd2 {[%clk 0:02:17.7]} 21... e5 {[%clk 0:02:05.1]} 22. c5 {[%clk
0:02:15.9]} 22... Bxb3 {[%clk 0:01:51.2]} 23. Qxb3 {[%clk 0:02:16.8]} 23... Bxc5
{[%clk 0:01:51.5]} 24. dxc5 {[%clk 0:02:15.6]} 24... Rxd2 {[%clk 0:01:51.1]} 25.
Nc3 {[%clk 0:02:13.2]} 25... Qxc5 {[%clk 0:01:46.6]} 26. Kg1 {[%clk 0:02:11]}
26... Rd3 {[%clk 0:01:21.1]} 27. Rh5 {[%clk 0:02:10.3]} 27... Qe7 {[%clk
0:01:05.8]} 28. Qc4 {[%clk 0:02:01.8]} 28... Rhd8 {[%clk 0:01:01.3]} 29. Nxe4
{[%clk 0:01:46.5]} 29... Rd1+ {[%clk 0:01:01.1]} 30. Kh2 {[%clk 0:01:46.3]}
30... Nd5 {[%clk 0:01:00.9]} 31. a5 {[%clk 0:01:41.3]} 31... a6 {[%clk
0:00:59.7]} 32. Nc5 {[%clk 0:01:35.3]} 32... Nf6 {[%clk 0:00:56.8]} 33. Rh4
{[%clk 0:01:19.8]} 33... R8d5 {[%clk 0:00:56.6]} 34. Na4 {[%clk 0:01:12.1]}
34... Kb8 {[%clk 0:00:45.9]} 35. Nb6 {[%clk 0:01:03.4]} 35... Rd8 {[%clk
0:00:40.5]} 36. Qb3 {[%clk 0:00:47.9]} 36... Nd5 {[%clk 0:00:38.9]} 37. Rxh7
{[%clk 0:00:42.2]} 37... Nxb6 {[%clk 0:00:38]} 38. axb6 {[%clk 0:00:41.3]} 38...
e4 {[%clk 0:00:36]} 39. Qc3 {[%clk 0:00:21.2]} 39... Qf6 {[%clk 0:00:35.5]} 40.
Qc5 {[%clk 0:00:15.9]} 40... Qd6+ {[%clk 0:00:34.2]} 41. Qxd6+ {[%clk
0:00:15.2]} 41... R1xd6 {[%clk 0:00:34.3]} 42. Rxg7 {[%clk 0:00:15.6]} 42... Rd2
{[%clk 0:00:34.5]} 43. Kg3 {[%clk 0:00:15.3]} 43... Rxb2 {[%clk 0:00:34.5]} 44.
Re7 {[%clk 0:00:14.9]} 44... Rxb6 {[%clk 0:00:34.1]} 45. g5 {[%clk 0:00:15.3]}
45... c5 {[%clk 0:00:33]} 46. Rxe4 {[%clk 0:00:13.3]} 46... Rg6 {[%clk
0:00:30.7]} 47. f4 {[%clk 0:00:11.4]} 47... b5 {[%clk 0:00:28.7]} 48. Kh4 {[%clk
0:00:11.6]} 48... Rh8+ {[%clk 0:00:25.5]} 49. Kg4 {[%clk 0:00:11.2]} 49... Rhg8
{[%clk 0:00:26.3]} 50. Re5 {[%clk 0:00:10.1]} 50... c4 {[%clk 0:00:25.7]} 51.
Rc5 {[%clk 0:00:09.5]} 51... Kb7 {[%clk 0:00:25.8]} 52. e4 {[%clk 0:00:08.5]}
52... Kb6 {[%clk 0:00:26.1]} 53. Rd5 {[%clk 0:00:07.7]} 53... c3 {[%clk
0:00:26.1]} 54. e5 {[%clk 0:00:07.4]} 54... c2 {[%clk 0:00:25.8]} 0-1

[Event "*** Titled Tuesday Blitz"]
[Site "Chess.com"]
[Date "2020.10.27"]
[Round "9"]
[White "Joshukid"]
[Black "vladislavkovalev"]
[Result "0-1"]
[WhiteElo "2699"]
[BlackElo "2849"]
[TimeControl "180+1"]
[EndTime "11:46:11 PDT"]
[Termination "vladislavkovalev won on time"]

1. Nf3 {[%clk 0:02:30.6]} 1... Nf6 {[%clk 0:03:00]} 2. c4 {[%clk 0:02:30.3]}
2... g6 {[%clk 0:03:00.6]} 3. b3 {[%clk 0:02:30.1]} 3... Bg7 {[%clk 0:03:01.1]}
4. Bb2 {[%clk 0:02:31]} 4... O-O {[%clk 0:03:01.8]} 5. g3 {[%clk 0:02:31.6]}
5... d6 {[%clk 0:03:00.9]} 6. d4 {[%clk 0:02:31.5]} 6... c5 {[%clk 0:02:58.9]}
7. Bg2 {[%clk 0:02:30.5]} 7... Ne4 {[%clk 0:02:53.1]} 8. O-O {[%clk 0:02:30.4]}
8... Nc6 {[%clk 0:02:53.2]} 9. Nbd2 {[%clk 0:02:23.9]} 9... Bf5 {[%clk
0:02:50.3]} 10. e3 {[%clk 0:02:22.7]} 10... Nxd2 {[%clk 0:02:48.7]} 11. Qxd2
{[%clk 0:02:20.2]} 11... Be4 {[%clk 0:02:48]} 12. d5 {[%clk 0:02:16.8]} 12...
Bxb2 {[%clk 0:02:45.9]} 13. Qxb2 {[%clk 0:02:17.7]} 13... Na5 {[%clk 0:02:38.9]}
14. Ne1 {[%clk 0:02:07]} 14... Bxg2 {[%clk 0:02:36.5]} 15. Nxg2 {[%clk
0:02:07.5]} 15... a6 {[%clk 0:02:35.1]} 16. h4 {[%clk 0:02:03.1]} 16... e5
{[%clk 0:02:27.2]} 17. dxe6 {[%clk 0:02:00.4]} 17... fxe6 {[%clk 0:02:28.1]} 18.
Rad1 {[%clk 0:01:59.1]} 18... Nc6 {[%clk 0:02:24.7]} 19. Rd2 {[%clk 0:01:49.9]}
19... Qe7 {[%clk 0:02:20.2]} 20. f4 {[%clk 0:01:47.7]} 20... Rad8 {[%clk
0:02:16.4]} 21. Rfd1 {[%clk 0:01:46.6]} 21... e5 {[%clk 0:02:08.7]} 22. Rd3
{[%clk 0:01:13.9]} 22... exf4 {[%clk 0:02:03.9]} 23. exf4 {[%clk 0:01:14.8]}
23... Nd4 {[%clk 0:02:01.3]} 24. Re3 {[%clk 0:01:05.4]} 24... Qf6 {[%clk
0:01:58.3]} 25. Qf2 {[%clk 0:01:05.5]} 25... d5 {[%clk 0:01:55.1]} 26. cxd5
{[%clk 0:01:03]} 26... Rxd5 {[%clk 0:01:56]} 27. Rde1 {[%clk 0:01:01.1]} 27...
Qf5 {[%clk 0:01:52.3]} 28. Re8 {[%clk 0:00:58.7]} 28... Qg4 {[%clk 0:01:39.4]}
29. Rxf8+ {[%clk 0:00:35.7]} 29... Kxf8 {[%clk 0:01:40.3]} 30. Rf1 {[%clk
0:00:32.4]} 30... Nf5 {[%clk 0:01:30.4]} 31. Ne3 {[%clk 0:00:32.8]} 31... Nxe3
{[%clk 0:01:24.9]} 32. Qxe3 {[%clk 0:00:33.7]} 32... Qd7 {[%clk 0:01:16.9]} 33.
Re1 {[%clk 0:00:32.6]} 33... Kf7 {[%clk 0:01:12]} 34. Qe4 {[%clk 0:00:18]} 34...
Rd2 {[%clk 0:01:07.9]} 35. Qc4+ {[%clk 0:00:16.6]} 35... Qd5 {[%clk 0:01:05.4]}
36. Qxd5+ {[%clk 0:00:15.7]} 36... Rxd5 {[%clk 0:01:06.3]} 37. Re2 {[%clk
0:00:16.3]} 37... h5 {[%clk 0:01:04.4]} 38. Kf2 {[%clk 0:00:16.4]} 38... b5
{[%clk 0:01:00.3]} 39. Ke3 {[%clk 0:00:16.1]} 39... Kf6 {[%clk 0:00:58.1]} 40.
Ke4 {[%clk 0:00:12.1]} 40... Rd4+ {[%clk 0:00:54.3]} 41. Kf3 {[%clk 0:00:12.7]}
41... Rd3+ {[%clk 0:00:51.5]} 42. Ke4 {[%clk 0:00:10.7]} 42... Rd4+ {[%clk
0:00:48.9]} 43. Kf3 {[%clk 0:00:09.6]} 43... c4 {[%clk 0:00:45]} 44. bxc4 {[%clk
0:00:09.3]} 44... Rxc4 {[%clk 0:00:44.3]} 45. Rd2 {[%clk 0:00:07.1]} 45... Ra4
{[%clk 0:00:38.7]} 46. Rc2 {[%clk 0:00:06.1]} 46... Ra3+ {[%clk 0:00:36.5]} 47.
Ke4 {[%clk 0:00:06.7]} 47... Ra4+ {[%clk 0:00:36.4]} 48. Kd5 {[%clk 0:00:06.3]}
48... Ra3 {[%clk 0:00:32.5]} 49. Ke4 {[%clk 0:00:04.7]} 49... Ra4+ {[%clk
0:00:23.8]} 50. Kd5 {[%clk 0:00:04.5]} 50... Kf5 {[%clk 0:00:22.8]} 0-1

[Event "*** Titled Tuesday Blitz"]
[Site "Chess.com"]
[Date "2020.10.27"]
[Round "9"]
[White "Corre_por_tu_vida"]
[Black "MartinMatthiesen"]
[Result "1-0"]
[WhiteElo "2555"]
[BlackElo "2412"]
[TimeControl "180+1"]
[EndTime "11:46:11 PDT"]
[Termination "Corre_por_tu_vida won by resignation"]

1. e4 {[%clk 0:02:38.2]} 1... c5 {[%clk 0:02:58.1]} 2. Nf3 {[%clk 0:02:37.2]}
2... d6 {[%clk 0:02:57.9]} 3. d4 {[%clk 0:02:35.2]} 3... cxd4 {[%clk 0:02:57.8]}
4. Nxd4 {[%clk 0:02:35.3]} 4... Nf6 {[%clk 0:02:58.3]} 5. Nc3 {[%clk 0:02:34.7]}
5... a6 {[%clk 0:02:58.3]} 6. Rg1 {[%clk 0:02:31.8]} 6... g6 {[%clk 0:02:56]} 7.
g4 {[%clk 0:02:31]} 7... Bg7 {[%clk 0:02:44.5]} 8. h4 {[%clk 0:02:30.3]} 8... h5
{[%clk 0:02:41.6]} 9. gxh5 {[%clk 0:02:29.4]} 9... Nxh5 {[%clk 0:02:36.4]} 10.
Be2 {[%clk 0:02:27.3]} 10... Nc6 {[%clk 0:02:33.6]} 11. Nb3 {[%clk 0:02:22.1]}
11... Bxc3+ {[%clk 0:02:21.1]} 12. bxc3 {[%clk 0:02:20.4]} 12... Nf6 {[%clk
0:02:21.5]} 13. f3 {[%clk 0:02:14.2]} 13... Rxh4 {[%clk 0:02:19.8]} 14. Bg5
{[%clk 0:02:13.2]} 14... Rh2 {[%clk 0:02:19.2]} 15. Qd2 {[%clk 0:02:09]} 15...
Ne5 {[%clk 0:02:15.9]} 16. Qf4 {[%clk 0:02:01.2]} 16... Rh7 {[%clk 0:01:56.1]}
17. O-O-O {[%clk 0:01:59.8]} 17... Be6 {[%clk 0:01:06.9]} 18. Bxf6 {[%clk
0:01:55.2]} 18... exf6 {[%clk 0:01:05.9]} 19. Rh1 {[%clk 0:01:54.7]} 19... Rxh1
{[%clk 0:01:04.6]} 20. Rxh1 {[%clk 0:01:55.2]} 20... Ke7 {[%clk 0:01:03]} 21.
Rh7 {[%clk 0:01:49.8]} 21... Qc7 {[%clk 0:00:50.7]} 22. Qe3 {[%clk 0:01:41.9]}
22... Rc8 {[%clk 0:00:48.4]} 23. f4 {[%clk 0:01:41.5]} 23... Nc4 {[%clk
0:00:42.8]} 24. Qd4 {[%clk 0:01:37.8]} 24... Na3 {[%clk 0:00:39.1]} 25. Kb2
{[%clk 0:01:34.7]} 25... Nc4+ {[%clk 0:00:33.2]} 26. Kc1 {[%clk 0:01:29.5]}
26... a5 {[%clk 0:00:32.8]} 27. f5 {[%clk 0:01:26]} 27... gxf5 {[%clk
0:00:29.8]} 28. exf5 {[%clk 0:01:26.9]} 28... Bd7 {[%clk 0:00:29.8]} 29. Qd5
{[%clk 0:01:11.2]} 29... Ne5 {[%clk 0:00:28.4]} 30. Bh5 {[%clk 0:01:07.7]} 30...
Be8 {[%clk 0:00:21.9]} 31. Qe6+ {[%clk 0:01:05.3]} 31... Kd8 {[%clk 0:00:20.1]}
32. Qxf6+ {[%clk 0:01:04.9]} 32... Qe7 {[%clk 0:00:20.3]} 33. Qxe7+ {[%clk
0:01:04.4]} 33... Kxe7 {[%clk 0:00:20.3]} 34. Nxa5 {[%clk 0:01:04.5]} 34... Rxc3
{[%clk 0:00:19.2]} 35. Nxb7 {[%clk 0:01:01.5]} 35... Rh3 {[%clk 0:00:19.2]} 36.
a4 {[%clk 0:00:54.8]} 36... Bxa4 {[%clk 0:00:17.7]} 37. Rh6 {[%clk 0:00:45]}
37... Rh2 {[%clk 0:00:16.4]} 38. Nxd6 {[%clk 0:00:41.7]} 38... f6 {[%clk
0:00:12.6]} 39. Ne4 {[%clk 0:00:39.1]} 39... Bxc2 {[%clk 0:00:11.1]} 40. Rh7+
{[%clk 0:00:35.1]} 40... Kd8 {[%clk 0:00:10.8]} 41. Nc5 {[%clk 0:00:33.2]} 41...
Bxf5 {[%clk 0:00:10.3]} 42. Rh8+ {[%clk 0:00:30.5]} 42... Kc7 {[%clk 0:00:10.6]}
43. Kd1 {[%clk 0:00:27.5]} 43... Bc2+ {[%clk 0:00:09.8]} 44. Ke1 {[%clk
0:00:26.9]} 44... Nd3+ {[%clk 0:00:09.4]} 45. Nxd3 {[%clk 0:00:26.2]} 45... Bxd3
{[%clk 0:00:10.3]} 46. Rh6 {[%clk 0:00:24.8]} 46... Bg6 {[%clk 0:00:06.8]} 47.
Rxg6 {[%clk 0:00:23.7]} 47... Rxh5 {[%clk 0:00:07.4]} 48. Rxf6 {[%clk
0:00:23.2]} 48... Re5+ {[%clk 0:00:08]} 49. Kf2 {[%clk 0:00:19.2]} 49... Kd7
{[%clk 0:00:08.9]} 50. Kf3 {[%clk 0:00:18.6]} 50... Re6 {[%clk 0:00:09.8]} 51.
Rf4 {[%clk 0:00:19.1]} 51... Rf6 {[%clk 0:00:10.7]} 52. Rxf6 {[%clk 0:00:18.5]}
1-0

[Event "*** Titled Tuesday Blitz"]
[Site "Chess.com"]
[Date "2020.10.27"]
[Round "9"]
[White "WPWPWP-2015"]
[Black "ftorodent"]
[Result "0-1"]
[WhiteElo "2487"]
[BlackElo "2672"]
[TimeControl "180+1"]
[EndTime "11:46:12 PDT"]
[Termination "ftorodent won by checkmate"]

1. e4 {[%clk 0:02:51.7]} 1... c5 {[%clk 0:02:59.2]} 2. Nf3 {[%clk 0:02:52]} 2...
e6 {[%clk 0:02:59.2]} 3. b3 {[%clk 0:02:50.2]} 3... b6 {[%clk 0:02:56.6]} 4. Bb2
{[%clk 0:02:48]} 4... Bb7 {[%clk 0:02:56.8]} 5. Nc3 {[%clk 0:02:47.9]} 5... Nf6
{[%clk 0:02:47.7]} 6. Qe2 {[%clk 0:02:47.3]} 6... d6 {[%clk 0:02:45.8]} 7. O-O-O
{[%clk 0:02:46.2]} 7... e5 {[%clk 0:02:45.1]} 8. h3 {[%clk 0:02:44.4]} 8... Nc6
{[%clk 0:02:43.2]} 9. Qe3 {[%clk 0:02:41.3]} 9... Be7 {[%clk 0:02:39.6]} 10. Bc4
{[%clk 0:02:35.9]} 10... Nd4 {[%clk 0:02:37.6]} 11. d3 {[%clk 0:02:33.4]} 11...
O-O {[%clk 0:02:32.5]} 12. Nd5 {[%clk 0:02:26.9]} 12... b5 {[%clk 0:02:24.3]}
13. Nxf6+ {[%clk 0:02:23.2]} 13... Bxf6 {[%clk 0:02:24.1]} 14. Bd5 {[%clk
0:02:21.6]} 14... Bxd5 {[%clk 0:02:17.5]} 15. exd5 {[%clk 0:02:20]} 15... Qa5
{[%clk 0:01:57.9]} 16. Kb1 {[%clk 0:02:18]} 16... Nxf3 {[%clk 0:01:44.5]} 17.
Qxf3 {[%clk 0:02:14.2]} 17... c4 {[%clk 0:01:44.6]} 18. dxc4 {[%clk 0:02:10.9]}
18... bxc4 {[%clk 0:01:43.7]} 19. Qc3 {[%clk 0:02:09.5]} 19... Qc7 {[%clk
0:01:40.4]} 20. Qxc4 {[%clk 0:01:42.9]} 20... Qxc4 {[%clk 0:01:39.1]} 21. bxc4
{[%clk 0:01:43.8]} 21... Rfc8 {[%clk 0:01:33.6]} 22. Rd3 {[%clk 0:01:34.6]}
22... Rxc4 {[%clk 0:01:33.1]} 23. Rb3 {[%clk 0:01:25.1]} 23... Rac8 {[%clk
0:01:30]} 24. c3 {[%clk 0:01:04]} 24... e4 {[%clk 0:01:29.4]} 25. Rc1 {[%clk
0:01:02.3]} 25... Be5 {[%clk 0:01:25.4]} 26. Rb4 {[%clk 0:00:45.5]} 26... a5
{[%clk 0:01:21.3]} 27. Rxc4 {[%clk 0:00:44.6]} 27... Rxc4 {[%clk 0:01:21.2]} 28.
Kc2 {[%clk 0:00:42.3]} 28... a4 {[%clk 0:01:21.3]} 29. Kb1 {[%clk 0:00:20.4]}
29... f5 {[%clk 0:01:19.8]} 30. Ba3 {[%clk 0:00:20]} 30... Kf7 {[%clk
0:01:16.4]} 31. Bb4 {[%clk 0:00:20.2]} 31... Kf6 {[%clk 0:01:12.3]} 32. a3
{[%clk 0:00:19.6]} 32... f4 {[%clk 0:01:11.8]} 33. Kc2 {[%clk 0:00:18]} 33...
Kf5 {[%clk 0:01:07.7]} 34. Re1 {[%clk 0:00:17.6]} 34... Bd4 {[%clk 0:00:59.5]}
35. f3 {[%clk 0:00:16.6]} 35... Be5 {[%clk 0:00:48.7]} 36. fxe4+ {[%clk
0:00:16.2]} 36... Rxe4 {[%clk 0:00:48.7]} 37. Rxe4 {[%clk 0:00:09]} 37... Kxe4
{[%clk 0:00:48.9]} 38. Kd2 {[%clk 0:00:05.7]} 38... g5 {[%clk 0:00:40.1]} 39.
Ke2 {[%clk 0:00:03.8]} 39... h5 {[%clk 0:00:39.3]} 40. Kd2 {[%clk 0:00:03.1]}
40... g4 {[%clk 0:00:39]} 41. hxg4 {[%clk 0:00:03]} 41... hxg4 {[%clk
0:00:38.9]} 42. Ke2 {[%clk 0:00:02.6]} 42... g3 {[%clk 0:00:24.7]} 43. Ba5
{[%clk 0:00:01]} 43... Kxd5 {[%clk 0:00:23]} 44. Kd3 {[%clk 0:00:01.3]} 44... f3
{[%clk 0:00:22.9]} 45. gxf3 {[%clk 0:00:01.7]} 45... Kc6 {[%clk 0:00:21.4]} 46.
Bb6 {[%clk 0:00:02.6]} 46... Kxb6 {[%clk 0:00:20.9]} 47. f4 {[%clk 0:00:03.4]}
47... Bxf4 {[%clk 0:00:20.7]} 48. Ke4 {[%clk 0:00:04.3]} 48... Be5 {[%clk
0:00:21.2]} 49. Kf3 {[%clk 0:00:04.4]} 49... Kc5 {[%clk 0:00:20.6]} 50. c4
{[%clk 0:00:04.8]} 50... Kxc4 {[%clk 0:00:21]} 51. Kg2 {[%clk 0:00:05.2]} 51...
Kb3 {[%clk 0:00:21.6]} 52. Kh3 {[%clk 0:00:05.7]} 52... Kxa3 {[%clk 0:00:22.3]}
53. Kg2 {[%clk 0:00:06.6]} 53... Kb3 {[%clk 0:00:23]} 54. Kh3 {[%clk 0:00:07.5]}
54... a3 {[%clk 0:00:23.7]} 55. Kg2 {[%clk 0:00:08.4]} 55... a2 {[%clk
0:00:24.3]} 56. Kh3 {[%clk 0:00:09.3]} 56... a1=Q {[%clk 0:00:24.6]} 57. Kg2
{[%clk 0:00:10.2]} 57... Qb2+ {[%clk 0:00:24.7]} 58. Kh3 {[%clk 0:00:11.1]}
58... Qf2 {[%clk 0:00:24.6]} 59. Kg4 {[%clk 0:00:12]} 59... g2 {[%clk
0:00:24.3]} 60. Kh3 {[%clk 0:00:12.9]} 60... Qg3# {[%clk 0:00:24.2]} 0-1

[Event "*** Titled Tuesday Blitz"]
[Site "Chess.com"]
[Date "2020.10.27"]
[Round "9"]
[White "mr65"]
[Black "PlotnikovPavel"]
[Result "1/2-1/2"]
[WhiteElo "2197"]
[BlackElo "2335"]
[TimeControl "180+1"]
[EndTime "11:46:12 PDT"]
[Termination "Game drawn by repetition"]

1. e4 {[%clk 0:03:00.9]} 1... e6 {[%clk 0:02:53.6]} 2. d4 {[%clk 0:02:59.4]}
2... d5 {[%clk 0:02:53.1]} 3. Nc3 {[%clk 0:02:59.2]} 3... Bb4 {[%clk 0:02:52.3]}
4. e5 {[%clk 0:02:59]} 4... b6 {[%clk 0:02:52.6]} 5. a3 {[%clk 0:02:54.8]} 5...
Bf8 {[%clk 0:02:51.6]} 6. Bb5+ {[%clk 0:02:46.6]} 6... c6 {[%clk 0:02:49.8]} 7.
Bd3 {[%clk 0:02:46.5]} 7... Ba6 {[%clk 0:02:49.3]} 8. Nf3 {[%clk 0:02:46.4]}
8... Qd7 {[%clk 0:02:38]} 9. O-O {[%clk 0:02:45.1]} 9... Be7 {[%clk 0:02:31.3]}
10. Bg5 {[%clk 0:02:43]} 10... h6 {[%clk 0:02:26.6]} 11. Bxe7 {[%clk 0:02:41.8]}
11... Nxe7 {[%clk 0:02:27.2]} 12. Nh4 {[%clk 0:02:41.1]} 12... g5 {[%clk
0:02:14.2]} 13. Nf3 {[%clk 0:02:37.5]} 13... Bxd3 {[%clk 0:02:14.5]} 14. Qxd3
{[%clk 0:02:33.4]} 14... Ng6 {[%clk 0:02:14.5]} 15. Ne2 {[%clk 0:02:28.2]} 15...
Qb7 {[%clk 0:02:12.5]} 16. c3 {[%clk 0:02:25.9]} 16... Qa6 {[%clk 0:02:09.9]}
17. Qxa6 {[%clk 0:02:24.1]} 17... Nxa6 {[%clk 0:02:10.8]} 18. b4 {[%clk
0:02:23.6]} 18... Nc7 {[%clk 0:02:09.3]} 19. h3 {[%clk 0:02:11.6]} 19... Ke7
{[%clk 0:02:07.4]} 20. Rfb1 {[%clk 0:02:09.3]} 20... Rhc8 {[%clk 0:02:03.3]} 21.
a4 {[%clk 0:02:07.8]} 21... Ne8 {[%clk 0:01:58.1]} 22. a5 {[%clk 0:02:02.5]}
22... Ng7 {[%clk 0:01:45.8]} 23. Ng3 {[%clk 0:02:00]} 23... Nf4 {[%clk
0:01:44.1]} 24. Kf1 {[%clk 0:01:57.9]} 24... Ne8 {[%clk 0:01:34.7]} 25. Ne2
{[%clk 0:01:57.3]} 25... Nxe2 {[%clk 0:01:30.1]} 26. Kxe2 {[%clk 0:01:56.6]}
26... Nc7 {[%clk 0:01:26.6]} 27. Kd3 {[%clk 0:01:46.5]} 27... Nb5 {[%clk
0:01:19.6]} 28. Ra2 {[%clk 0:01:42.9]} 28... Nc7 {[%clk 0:01:11.1]} 29. Rba1
{[%clk 0:01:40.5]} 29... b5 {[%clk 0:01:11.3]} 30. Nh2 {[%clk 0:01:38.3]} 30...
Rg8 {[%clk 0:01:03.1]} 31. Ng4 {[%clk 0:01:37.1]} 31... Rg6 {[%clk 0:01:02.4]}
32. Nf6 {[%clk 0:01:33.8]} 32... Ne8 {[%clk 0:01:01.7]} 33. Nxe8 {[%clk
0:01:30.3]} 33... Rxe8 {[%clk 0:01:02.1]} 34. Rf1 {[%clk 0:01:29.7]} 34... h5
{[%clk 0:01:00.4]} 35. f4 {[%clk 0:01:27.9]} 35... gxf4 {[%clk 0:00:58.7]} 36.
Rxf4 {[%clk 0:01:25.6]} 36... Reg8 {[%clk 0:00:54.3]} 37. Raf2 {[%clk
0:01:24.5]} 37... Rg3+ {[%clk 0:00:48.4]} 38. Kd2 {[%clk 0:01:21]} 38... R8g7
{[%clk 0:00:45.9]} 39. Rf6 {[%clk 0:00:58.8]} 39... a6 {[%clk 0:00:37.8]} 40.
R6f4 {[%clk 0:00:56.7]} 40... Ke8 {[%clk 0:00:36.3]} 41. Rf6 {[%clk 0:00:56.3]}
41... h4 {[%clk 0:00:23.8]} 42. R6f4 {[%clk 0:00:55.7]} 42... Ke7 {[%clk
0:00:23.1]} 43. Rf6 {[%clk 0:00:53.5]} 43... Ke8 {[%clk 0:00:22]} 44. R6f4
{[%clk 0:00:53.4]} 44... Rxg2 {[%clk 0:00:21.8]} 45. Rxf7 {[%clk 0:00:52.9]}
45... Rxf2+ {[%clk 0:00:20.5]} 46. Rxf2 {[%clk 0:00:51.5]} 46... Rg3 {[%clk
0:00:21.1]} 47. Rf6 {[%clk 0:00:50.9]} 47... Ke7 {[%clk 0:00:21.5]} 48. Rh6
{[%clk 0:00:50.9]} 48... Rxh3 {[%clk 0:00:21.8]} 49. Rh7+ {[%clk 0:00:50.8]}
49... Kf8 {[%clk 0:00:22.1]} 50. Rc7 {[%clk 0:00:47.6]} 50... Rh2+ {[%clk
0:00:20.3]} 51. Ke3 {[%clk 0:00:46.2]} 51... Rc2 {[%clk 0:00:16.4]} 52. Rxc6
{[%clk 0:00:45.9]} 52... h3 {[%clk 0:00:16.6]} 53. Rxe6 {[%clk 0:00:45.4]} 53...
Rxc3+ {[%clk 0:00:16.3]} 54. Kf4 {[%clk 0:00:44.1]} 54... Kg7 {[%clk 0:00:12.3]}
55. Re7+ {[%clk 0:00:40.5]} 55... Kg6 {[%clk 0:00:11.7]} 56. Re8 {[%clk
0:00:39.2]} 56... Kg7 {[%clk 0:00:10.9]} 57. Re7+ {[%clk 0:00:34.7]} 57... Kg8
{[%clk 0:00:10.4]} 58. Re8+ {[%clk 0:00:34.6]} 58... Kh7 {[%clk 0:00:10.7]} 59.
Re7+ {[%clk 0:00:34.2]} 59... Kg6 {[%clk 0:00:08.7]} 60. Re6+ {[%clk 0:00:33.3]}
60... Kh7 {[%clk 0:00:08.2]} 61. Re7+ {[%clk 0:00:33.2]} 61... Kh8 {[%clk
0:00:08]} 62. Re8+ {[%clk 0:00:33.2]} 62... Kh7 {[%clk 0:00:08.1]} 63. Re7+
{[%clk 0:00:33.2]} 1/2-1/2